bitfinex/quotes_BTCUSD_20260315
["timestamp","ask_amount","ask_price","bid_price","bid_amount"]
[1773562617242,0.0014,71638.0,71623.0,0.14012077]
[1773562617444,0.0014,71637.0,71623.0,0.14012077]
[1773562619465,0.07119657,71637.0,71623.0,0.0703108]
[1773562619666,0.0014,71637.0,71623.0,0.14012065]
[1773562622246,0.03397126,71636.0,71623.0,0.00030708]
[1773562622542,0.07119643,71637.0,71617.0,0.06981558]
[1773562622543,0.03377126,71632.0,71617.0,0.06981558]
[1773562622743,0.03387828,71632.0,71617.0,0.06981558]
[1773562623316,0.03387828,71632.0,71618.0,0.07000372]
[1773562624299,0.03387828,71632.0,71619.0,0.06981387]
[1773562625035,0.0014,71631.0,71619.0,0.06981387]
[1773562627289,0.0014,71630.0,71620.0,0.11190787]
[1773562627502,0.0014,71629.0,71620.0,0.18191159]
[1773562627705,0.0014,71628.0,71620.0,0.18191159]
[1773562628115,0.0014,71628.0,71620.0,0.07000372]
[1773562628344,0.0014,71628.0,71618.0,0.07001387]
[1773562628345,0.0014,71628.0,71618.0,0.0002]
[1773562628559,0.0014,71628.0,71620.0,0.07000372]
[1773562631655,0.0014,71628.0,71620.0,0.1398163]
[1773562632069,0.0014,71628.0,71620.0,0.07000372]
[1773562632904,0.0014,71627.0,71620.0,0.07000372]
[1773562634383,0.0014,71627.0,71620.0,0.13981617]
[1773562635886,0.0014,71627.0,71620.0,0.06981245]
[1773562636925,0.0014,71627.0,71619.0,0.06981376]
[1773562637139,0.0014,71627.0,71620.0,0.07000372]
[1773562640144,0.0014,71627.0,71620.0,0.13981632]
[1773562640619,0.0014,71626.0,71620.0,0.13981632]
[1773562642058,0.0014,71626.0,71619.0,0.06981376]
[1773562642268,0.0014,71626.0,71620.0,0.07000372]
[1773562644389,0.0014,71626.0,71620.0,0.13981612]
[1773562647819,0.0014,71626.0,71620.0,0.13992314]
[1773562648415,0.0014,71625.0,71620.0,0.13992314]
[1773562648762,0.0014,71625.0,71620.0,0.14012314]
[1773562652533,0.0014,71625.0,71620.0,0.25460961]
[1773562655548,0.0014,71625.0,71620.0,0.09214633]
[1773562656048,0.0014,71624.0,71620.0,0.18429887]
[1773562660001,0.0014,71624.0,71619.0,0.06991866]
[1773562660146,0.00144482,71624.0,71619.0,0.06991866]
[1773562660347,0.00144482,71624.0,71619.0,0.18440513]
[1773562660543,0.07125409,71624.0,71618.0,0.0002]
[1773562660853,0.07125409,71624.0,71615.0,0.0002]
[1773562662203,0.10918319,71624.0,71615.0,0.0002]
[1773562663865,0.0014,71623.0,71615.0,0.0002]
[1773562664472,0.06981095,71622.0,71615.0,0.0002]
[1773562664786,0.06981095,71622.0,71612.0,0.0002]
[1773562664976,0.06981095,71622.0,71603.0,0.0002]
[1773562664977,0.03817652,71619.0,71603.0,0.0002]
[1773562667187,0.06981485,71618.0,71603.0,0.0002]
[1773562667383,0.03927184,71617.0,71603.0,0.0002]
[1773562669294,0.10777858,71616.0,71603.0,0.0002]
[1773562669694,0.03800363,71615.0,71603.0,0.0002]
[1773562671328,0.06981875,71614.0,71603.0,0.0002]
[1773562671645,0.04481875,71614.0,71603.0,0.0002]
[1773562671847,0.03850511,71613.0,71603.0,0.0002]
[1773562673528,0.03850511,71613.0,71596.0,0.0002]
[1773562673529,0.03850511,71613.0,71585.0,0.10809139]
[1773562673530,0.03799471,71611.0,71585.0,0.10809139]
[1773562673730,0.0698207,71612.0,71583.0,1e-08]
[1773562673731,0.05850208,71600.0,71583.0,1e-08]
[1773562673930,0.71079872,71610.0,71583.0,1e-08]
[1773562673931,0.71079872,71610.0,71584.0,0.12044546]
[1773562673932,0.24278208,71610.0,71584.0,0.12044546]
[1773562674135,0.05850208,71610.0,71584.0,0.12044546]
[1773562674374,0.0698207,71612.0,71583.0,0.06984873]
[1773562674375,0.0014,71609.0,71591.0,0.11764546]
[1773562674838,0.0014,71609.0,71591.0,0.1180029]
[1773562675560,0.0698246,71608.0,71591.0,0.00035744]
[1773562675779,0.07376426,71608.0,71591.0,0.00035744]
[1773562676963,0.0014,71607.0,71591.0,0.00035744]
[1773562677734,0.06982655,71606.0,71591.0,0.00035744]
[1773562677941,0.07389348,71606.0,71591.0,0.00035744]
[1773562679143,0.07389348,71606.0,71591.0,0.00055744]
[1773562679484,0.05389348,71606.0,71591.0,0.00055744]
[1773562679939,0.00415844,71605.0,71591.0,0.00055744]
[1773562681740,0.05850208,71601.0,71591.0,0.00055744]
[1773562681889,0.05850208,71601.0,71583.0,0.00020001]
[1773562681890,0.07424581,71599.0,71583.0,0.00020001]
[1773562682060,0.07460271,71599.0,71583.0,0.00020001]
[1773562682485,0.00441244,71598.0,71583.0,0.00020001]
[1773562683474,0.0014,71597.0,71583.0,0.00020001]
[1773562683886,0.0698363,71596.0,71583.0,0.00020001]
[1773562686629,0.0701932,71599.0,71587.0,0.08587888]
[1773562686630,0.0003569,71599.0,71587.0,0.08587888]
[1773562686828,0.11154584,71616.0,71587.0,0.08587888]
[1773562686829,0.06982052,71613.0,71588.0,0.11904546]
[1773562687046,0.0014,71612.0,71591.0,0.11834546]
[1773562688340,0.06982167,71611.0,71591.0,0.11834546]
[1773562691689,0.0014,71610.0,71591.0,0.11834546]
[1773562692771,0.06982362,71609.0,71591.0,0.11834546]
[1773562693200,0.06982362,71613.0,71591.0,0.11834546]
[1773562693201,0.06272661,71627.0,71592.0,0.4539622]
[1773562693416,0.0002153,71637.0,71592.0,0.4539622]
[1773562693417,0.07176153,71632.0,71611.0,0.08574229]
[1773562693572,0.07176153,71632.0,71612.0,0.14008734]
[1773562693574,0.0020838,71632.0,71612.0,0.14008734]
[1773562693779,0.07188542,71632.0,71614.0,0.11344082]
[1773562693979,0.07188542,71632.0,71616.0,0.11344082]
[1773562694186,0.07188542,71632.0,71618.0,0.11344082]
[1773562694383,0.07188542,71632.0,71620.0,0.11344082]
[1773562694586,0.07188542,71632.0,71622.0,0.11344082]
[1773562694832,0.0014,71631.0,71622.0,0.11344082]
[1773562698576,0.07120287,71631.0,71622.0,0.11344082]
[1773562699962,0.07142288,71631.0,71622.0,0.11344082]
[1773562702332,0.07142288,71631.0,71620.0,0.12831482]
[1773562702519,0.07142288,71631.0,71612.0,0.06981976]
[1773562702520,0.0014,71630.0,71612.0,0.06981976]
[1773562702757,0.0014,71630.0,71613.0,0.12085989]
[1773562704367,0.06980412,71629.0,71615.0,0.12085989]
[1773562706875,0.06980412,71629.0,71617.0,0.12085989]
[1773562709767,0.06980412,71629.0,71618.0,0.12085989]
[1773562709973,0.0014,71628.0,71618.0,0.12085989]
[1773562710181,0.0014,71627.0,71618.0,0.12085989]
[1773562713570,0.0712064,71627.0,71618.0,0.12085989]
[1773562713963,0.0712064,71627.0,71618.0,0.12105989]
[1773562714998,0.0014,71626.0,71619.0,0.12085989]
[1773562716066,0.0014,71625.0,71619.0,0.12085989]
[1773562716417,0.06980543,71628.0,71619.0,0.12085989]
[1773562716615,0.0014,71627.0,71619.0,0.12085989]
[1773562717129,0.0014,71626.0,71619.0,0.12085989]
[1773562717335,0.0014,71626.0,71620.0,0.25924576]
[1773562717656,0.0014,71625.0,71620.0,0.12085989]
[1773562718167,0.0014,71624.0,71620.0,0.12085989]
[1773562718365,0.0014,71623.0,71622.0,0.12085989]
[1773562718907,0.07002224,71631.0,71622.0,0.12085989]
[1773562719084,0.0014,71625.0,71622.0,0.12085989]
[1773562719287,0.0014,71625.0,71623.0,0.13849403]
[1773562719486,0.07002224,71631.0,71620.0,0.12085989]
[1773562719689,0.0014,71625.0,71622.0,0.12085989]
[1773562719906,0.0024,71625.0,71623.0,0.1384937]
[1773562720093,0.0014,71625.0,71620.0,0.12085989]
[1773562720246,0.0014,71625.0,71622.0,0.12085989]
[1773562720444,0.0014,71625.0,71623.0,0.13858128]
[1773562720445,0.0024,71625.0,71623.0,0.13858128]
[1773562720675,0.0014,71625.0,71624.0,0.13858128]
[1773562721066,0.0024,71625.0,71624.0,0.13858128]
[1773562721296,0.0014,71625.0,71624.0,0.13858128]
[1773562721663,0.0024,71625.0,71624.0,0.13718128]
[1773562721867,0.0024,71625.0,71624.0,0.13578128]
[1773562722287,0.0014,71625.0,71624.0,0.13578128]
[1773562723172,0.00220452,71625.0,71624.0,0.13578128]
[1773562724504,0.0014,71625.0,71624.0,0.13578128]
[1773562724700,0.0024,71625.0,71624.0,0.13578128]
[1773562725834,0.0014,71625.0,71624.0,0.13578128]
[1773562726032,0.0014,71625.0,71619.0,0.06981366]
[1773562732475,0.0014,71626.0,71619.0,0.06981366]
[1773562732686,0.0014,71626.0,71620.0,0.11377124]
[1773562733732,0.0014,71626.0,71622.0,0.18111172]
[1773562734154,0.00022001,71640.0,71622.0,0.06981082]
[1773562734527,0.0014,71634.0,71622.0,0.1113009]
[1773562734657,0.0014,71634.0,71622.0,0.06981084]
[1773562735483,0.00022001,71627.0,71622.0,0.06981084]
[1773562735806,0.0014,71626.0,71622.0,0.06981084]
[1773562738026,0.0014,71626.0,71621.0,0.06981192]
[1773562742997,0.0014,71626.0,71620.0,0.2395608]
[1773562743132,0.0014,71626.0,71612.0,4.482e-05]
[1773562743133,0.12063217,71626.0,71612.0,4.482e-05]
[1773562743474,0.11923217,71624.0,71612.0,4.482e-05]
[1773562743837,0.11923217,71624.0,71612.0,0.06986521]
[1773562745374,0.06980997,71623.0,71612.0,0.06986521]
[1773562747277,0.06980997,71624.0,71612.0,0.06986521]
[1773562748045,0.0014,71626.0,71612.0,0.06986521]
[1773562748222,0.0014,71625.0,71617.0,0.11377124]
[1773562748768,0.0014,71624.0,71617.0,0.11377124]
[1773562749620,0.11945218,71638.0,71617.0,0.11377124]
[1773562749621,0.00022001,71639.0,71619.0,0.11377124]
[1773562749767,0.0014,71638.0,71630.0,0.11377124]
[1773562749972,0.00022001,71639.0,71630.0,0.11377124]
[1773562750172,0.0014,71638.0,71630.0,0.11377124]
[1773562751605,0.00022001,71637.0,71630.0,0.11377124]
[1773562751809,0.07001159,71642.0,71630.0,0.11377124]
[1773562751810,0.11923217,71649.0,71631.0,0.06980218]
[1773562752037,0.0014,71648.0,71639.0,0.05845517]
[1773562752633,0.069785,71649.0,71639.0,0.05845517]
[1773562752842,0.0014,71647.0,71639.0,0.05845517]
[1773562753222,0.0014,71646.0,71639.0,0.05845517]
[1773562754106,0.07118781,71646.0,71639.0,0.12824939]
[1773562755832,0.07118781,71646.0,71635.0,0.11377124]
[1773562756039,0.07118781,71646.0,71636.0,0.05845517]
[1773562756763,0.0014,71645.0,71637.0,0.06979607]
[1773562760480,0.07118892,71645.0,71637.0,0.06979607]
[1773562760855,0.07118892,71645.0,71636.0,0.12825247]
[1773562760856,0.07118892,71645.0,71636.0,0.06979711]
[1773562763893,0.07118892,71645.0,71633.0,0.06980021]
[1773562764315,0.0014,71644.0,71633.0,0.06980021]
[1773562765414,0.0014,71644.0,71636.0,0.0002]
[1773562765836,0.07119015,71644.0,71637.0,0.06979633]
[1773562766651,0.07119015,71644.0,71636.0,0.0002]
[1773562766849,0.07119015,71644.0,71636.0,0.06999654]
[1773562767054,0.07119015,71644.0,71636.0,0.0002]
[1773562767353,0.07119015,71644.0,71634.0,0.06979898]
[1773562767564,0.19081691,71644.0,71634.0,0.06979898]
[1773562767914,0.19081691,71644.0,71631.0,0.06980218]
[1773562768740,0.19081691,71644.0,71628.0,0.0002]
[1773562768741,0.11962676,71643.0,71628.0,0.0002]
[1773562768958,0.07119015,71644.0,71631.0,0.12555115]
[1773562770978,0.07119015,71644.0,71632.0,0.0698012]
[1773562771179,0.07119015,71644.0,71632.0,0.19535235]
[1773562771888,0.0014,71643.0,71632.0,0.19535235]
[1773562773553,0.06979146,71642.0,71632.0,0.19535235]
[1773562779599,0.05479146,71642.0,71632.0,0.19555235]
[1773562780424,0.05479146,71642.0,71632.0,0.07000111]
[1773562782840,0.07119146,71643.0,71633.0,0.12555115]
[1773562785447,0.07119146,71643.0,71634.0,0.06979925]
[1773562787425,0.0014,71642.0,71634.0,0.06979925]
[1773562789784,0.06979243,71641.0,71633.0,0.06980023]
[1773562795179,0.06279243,71641.0,71633.0,0.06980023]
[1773562801012,0.06279243,71641.0,71633.0,0.18992055]
[1773562801820,0.06279243,71641.0,71633.0,0.06980023]
[1773562802829,0.04679243,71641.0,71633.0,0.06980023]
[1773562803130,0.04679243,71641.0,71633.0,0.06976023]
[1773562805013,0.07118418,71650.0,71637.0,0.058423]
[1773562805221,0.07118418,71650.0,71638.0,0.06979536]
[1773562805420,0.0014,71650.0,71638.0,0.06979536]
[1773562805616,0.07118385,71650.0,71638.0,0.06979536]
[1773562805802,0.00022001,71643.0,71638.0,0.06979536]
[1773562808172,0.00022001,71643.0,71635.0,0.06979536]
[1773562809274,0.07001097,71643.0,71635.0,0.06979536]
[1773562809453,0.07001097,71643.0,71633.0,0.16993477]
[1773562809636,0.07001097,71643.0,71633.0,0.128423]
[1773562810470,0.04901097,71643.0,71633.0,0.128423]
[1773562814872,0.04901097,71643.0,71634.0,0.11131177]
[1773562816927,0.04926297,71643.0,71634.0,0.11131177]
[1773562819278,0.02626297,71643.0,71633.0,0.23973499]
[1773562820576,0.02626297,71643.0,71634.0,0.11131177]
[1773562820887,0.02626297,71643.0,71623.0,0.0002]
[1773562820888,0.12033106,71642.0,71623.0,0.0002]
[1773562821239,0.12033106,71640.0,71623.0,0.07000997]
[1773562821860,0.12033106,71640.0,71623.0,0.0002]
[1773562822040,0.12044176,71640.0,71624.0,0.0700088]
[1773562823126,0.17886476,71640.0,71624.0,0.0700088]
[1773562823945,0.06979438,71639.0,71624.0,0.0700088]
[1773562824235,0.0014,71638.0,71624.0,0.0700088]
[1773562824950,0.0001107,71638.0,71627.0,0.12425763]
[1773562825851,0.06979243,71641.0,71627.0,0.12425763]
[1773562826053,0.06979243,71641.0,71629.0,0.12425763]
[1773562826350,0.56979243,71641.0,71629.0,0.12425763]
[1773562826963,0.55179243,71641.0,71629.0,0.12425763]
[1773562828547,0.55179243,71641.0,71630.0,0.19406078]
[1773562830048,0.058423,71640.0,71628.0,0.0698051]
[1773562830447,0.06979438,71639.0,71627.0,0.06980607]
[1773562830848,0.06979438,71639.0,71628.0,0.0014]
[1773562831071,0.06979438,71639.0,71629.0,0.0002]
[1773562834676,0.04579438,71639.0,71629.0,0.0002]
[1773562835493,0.04579438,71639.0,71629.0,0.07000412]
[1773562837130,0.04579438,71639.0,71629.0,0.06800412]
[1773562838413,0.04579438,71639.0,71630.0,0.12425763]
[1773562839639,0.04601439,71639.0,71630.0,0.12425763]
[1773562840041,0.04601439,71639.0,71629.0,0.06820412]
[1773562842187,0.04601439,71639.0,71629.0,0.0002]
[1773562842388,0.02701439,71639.0,71629.0,0.0002]
[1773562844895,0.02701439,71639.0,71625.0,0.0002]
[1773562844896,0.08221766,71638.0,71625.0,0.0002]
[1773562845100,0.11693732,71634.0,71621.0,0.0002]
[1773562845300,0.058423,71631.0,71621.0,0.0002]
[1773562845598,0.059823,71631.0,71621.0,0.0002]
[1773562847192,0.06980315,71630.0,71621.0,0.0002]
[1773562849983,0.05280315,71630.0,71621.0,0.0002]
[1773562857786,0.03280315,71630.0,71621.0,0.0002]
[1773562858535,0.03280315,71630.0,71619.0,0.0014]
[1773562858536,0.1223373,71629.0,71619.0,0.0014]
[1773562858878,0.03280315,71630.0,71619.0,0.0014]
[1773562859269,0.03280315,71630.0,71619.0,0.07121375]
[1773562861315,0.03280315,71630.0,71621.0,0.0002]
[1773562861540,0.03302316,71630.0,71621.0,0.0002]
[1773562865530,0.01702316,71630.0,71621.0,0.0002]
[1773562868389,0.01702316,71630.0,71617.0,0.0002]
[1773562868390,0.07547726,71629.0,71617.0,0.0002]
[1773562868808,0.0014,71629.0,71617.0,0.0002]
[1773562869930,0.05846909,71627.0,71617.0,0.0002]
[1773562871591,0.05846909,71627.0,71616.0,0.0003413]
[1773562871797,0.05846909,71627.0,71611.0,0.0002]
[1773562871798,0.0698051,71628.0,71603.0,0.0002]
[1773562871799,0.0745824,71623.0,71603.0,0.0002]
[1773562871931,0.05846909,71616.0,71603.0,0.0016]
[1773562872141,0.05846909,71616.0,71604.0,0.0016]
[1773562872348,0.05846909,71616.0,71604.0,0.0002]
[1773562873254,0.07443333,71617.0,71601.0,0.0014]
[1773562873255,0.05846909,71610.0,71601.0,0.0014]
[1773562873433,0.05846909,71610.0,71601.0,0.11429577]
[1773562873837,0.06982362,71609.0,71601.0,0.11429577]
[1773562874182,0.06982362,71609.0,71600.0,0.0014]
[1773562875167,0.06982362,71609.0,71600.0,0.11429577]
[1773562877804,0.06982362,71609.0,71600.0,0.11289577]
[1773562878872,0.06982362,71609.0,71599.0,0.07025699]
[1773562879413,0.04582362,71609.0,71599.0,0.07025699]
[1773562879565,0.04582362,71609.0,71599.0,0.0004239]
[1773562880377,0.04582362,71609.0,71599.0,0.07025697]
[1773562880778,0.04582362,71609.0,71599.0,0.0004239]
[1773562881578,0.04582362,71609.0,71599.0,0.0006239]
[1773562882602,0.04582362,71609.0,71599.0,0.07045719]
[1773562886456,0.0014,71614.0,71599.0,0.0006239]
[1773562886632,0.06981422,71619.0,71600.0,0.12139037]
[1773562886984,0.05181422,71619.0,71600.0,0.12139037]
[1773562888412,0.05203423,71619.0,71602.0,0.12139037]
[1773562888611,0.05203423,71619.0,71604.0,0.12139037]
[1773562889525,0.05203423,71619.0,71604.0,0.12167297]
[1773562891149,0.05203423,71619.0,71605.0,0.06982752]
[1773562891451,0.05203423,71619.0,71606.0,0.12139037]
[1773562892669,0.1466,71618.0,71606.0,0.12167297]
[1773562893336,0.06981582,71617.0,71606.0,0.19149918]
[1773562894254,0.06573131,71619.0,71607.0,0.12139037]
[1773562894440,0.06980763,71626.0,71607.0,0.12139037]
[1773562894628,0.0014,71625.0,71607.0,0.12167297]
[1773562894832,0.04960763,71626.0,71607.0,0.12167297]
[1773562895255,0.00022001,71619.0,71607.0,0.12167297]
[1773562895454,0.00022001,71619.0,71609.0,0.12139037]
[1773562896075,0.06981328,71620.0,71609.0,0.12139037]
[1773562896280,0.00022001,71630.0,71611.0,0.07647591]
[1773562896607,0.00022001,71630.0,71612.0,0.12139037]
[1773562896608,0.07013027,71630.0,71612.0,0.12139037]
[1773562896786,0.07013027,71630.0,71612.0,0.12279037]
[1773562897555,0.07013027,71630.0,71613.0,0.06981972]
[1773562897782,0.07013027,71630.0,71614.0,0.12139037]
[1773562898693,0.07013027,71630.0,71614.0,0.12153167]
[1773562900301,0.07013027,71630.0,71615.0,0.06981777]
[1773562900508,0.07013027,71630.0,71616.0,0.12139037]
[1773562901611,0.07013104,71630.0,71616.0,0.12139037]
[1773562902278,0.07013104,71630.0,71617.0,0.06981582]
[1773562902483,0.04913104,71630.0,71618.0,0.12279037]
[1773562904418,0.04913104,71630.0,71620.0,0.12139037]
[1773562906505,0.04913104,71630.0,71621.0,0.06981192]
[1773562907079,0.04913104,71630.0,71621.0,0.19120229]
[1773562908181,0.04935105,71630.0,71621.0,0.19120229]
[1773562909627,0.00022001,71630.0,71621.0,0.19120229]
[1773562910029,0.56002289,71631.0,71621.0,0.19120229]
[1773562910248,0.56002289,71631.0,71621.0,0.19130933]
[1773562912416,0.56002289,71631.0,71622.0,0.11709999]
[1773562912642,0.06980288,71631.0,71622.0,0.11709999]
[1773562913712,0.06980088,71633.0,71623.0,0.06980997]
[1773562914293,0.07001931,71634.0,71623.0,0.06980997]
[1773562915072,0.07001931,71634.0,71624.0,0.11709999]
[1773562915479,0.00022001,71633.0,71624.0,0.11709999]
[1773562915682,0.0698012,71632.0,71625.0,0.06980802]
[1773562917831,0.0548012,71632.0,71625.0,0.06980802]
[1773562918012,0.0548012,71632.0,71624.0,0.18690848]
[1773562918196,0.0548012,71632.0,71624.0,0.06980849]
[1773562918799,0.0548012,71632.0,71622.0,0.06981042]
[1773562919127,0.0548012,71632.0,71623.0,0.11709999]
[1773562920517,0.0548012,71632.0,71622.0,0.06981042]
[1773562920714,0.00022001,71633.0,71622.0,0.06981042]
[1773562921047,0.07002031,71633.0,71621.0,0.06991701]
[1773562921263,0.07002031,71633.0,71622.0,0.11709999]
[1773562921434,0.0700211,71633.0,71622.0,0.11709999]
[1773562921748,0.00022001,71633.0,71622.0,0.11709999]
[1773562922319,0.07002068,71633.0,71622.0,0.11709999]
[1773562923034,0.07002068,71633.0,71623.0,0.06980997]
[1773562923253,0.07002068,71633.0,71624.0,0.0014]
[1773562924224,0.07002068,71633.0,71624.0,0.11849999]
[1773562925352,0.07002068,71633.0,71625.0,0.06980802]
[1773562925536,0.05802068,71633.0,71625.0,0.06980802]
[1773562926685,0.05802068,71633.0,71624.0,0.18830846]
[1773562926838,0.05802068,71633.0,71624.0,0.07120847]
[1773562928010,0.00022001,71634.0,71624.0,0.07120847]
[1773562928215,0.00022001,71634.0,71625.0,0.11709999]
[1773562930369,0.00022001,71634.0,71626.0,0.06980705]
[1773562930570,0.07001585,71638.0,71626.0,0.18690704]
[1773562930811,0.00022001,71638.0,71626.0,0.18690704]
[1773562931115,0.07001546,71638.0,71626.0,0.18690704]
[1773562931780,0.07001546,71638.0,71627.0,0.11709999]
[1773562932789,0.07001546,71638.0,71629.0,0.11709999]
[1773562933015,0.07001546,71638.0,71630.0,0.11849999]
[1773562933181,0.06501546,71638.0,71630.0,0.11849999]
[1773562935412,0.06501546,71638.0,71630.0,0.18830306]
[1773562936039,0.06544246,71638.0,71630.0,0.18830306]
[1773562936657,0.06544246,71638.0,71630.0,0.07120307]
[1773562936822,0.11818414,71635.0,71622.0,0.0014]
[1773562937011,0.11861114,71635.0,71622.0,0.0014]
[1773562937213,0.11861114,71635.0,71622.0,0.0016]
[1773562939135,0.06979925,71634.0,71623.0,0.06980997]
[1773562939730,0.06979925,71634.0,71624.0,0.0014]
[1773562940102,0.07022625,71634.0,71624.0,0.0014]
[1773562941076,0.05822625,71634.0,71624.0,0.0014]
[1773562941554,0.07119925,71636.0,71624.0,0.0014]
[1773562941555,0.0014,71636.0,71625.0,0.06980802]
[1773562941753,0.07001594,71638.0,71626.0,0.11617187]
[1773562941754,0.00022001,71638.0,71626.0,0.11617187]
[1773562942075,0.06979633,71637.0,71626.0,0.11617187]
[1773562942286,0.07001576,71638.0,71626.0,0.11617187]
[1773562944089,0.07001576,71638.0,71627.0,0.0014]
[1773562944974,0.07001576,71638.0,71628.0,0.0014]
[1773562946816,0.07001576,71638.0,71629.0,0.06980412]
[1773562948835,0.06501576,71638.0,71629.0,0.06980412]
[1773562953034,0.06523577,71638.0,71629.0,0.06980412]
[1773562953727,0.06523577,71638.0,71627.0,0.06980571]
[1773562953728,0.06523577,71638.0,71627.0,0.06980584]
[1773562953940,0.11736137,71637.0,71628.0,0.0014]
[1773562954508,0.11736137,71637.0,71627.0,0.06980584]
[1773562954708,0.11736137,71637.0,71627.0,0.07120584]
[1773562956312,0.0447973,71636.0,71627.0,0.07120584]
[1773562957030,0.5447973,71636.0,71627.0,0.07120584]
[1773562958763,0.5447973,71636.0,71627.0,0.06980584]
[1773562959078,0.5447973,71636.0,71627.0,0.07120584]
[1773562960079,0.11736137,71635.0,71627.0,0.06980584]
[1773562960276,0.11736137,71635.0,71626.0,0.0714064]
[1773562960277,0.11736137,71635.0,71626.0,0.07140698]
[1773562960477,0.11736137,71635.0,71622.0,0.07001029]
[1773562961285,0.18716062,71634.0,71622.0,0.07001029]
[1773562961640,0.18856062,71634.0,71626.0,0.0002]
[1773562964080,0.17056062,71634.0,71626.0,0.0002]
[1773562967831,0.67056062,71634.0,71626.0,0.0002]
[1773562971813,0.65256062,71634.0,71626.0,0.0002]
[1773562976365,0.65278063,71634.0,71626.0,0.0002]
[1773562977466,0.53541926,71634.0,71626.0,0.0002]
[1773562977653,0.11055891,71633.0,71622.0,0.07141094]
[1773562977822,0.11055891,71633.0,71622.0,0.07068782]
[1773562978949,0.0698012,71632.0,71622.0,0.07121094]
[1773562979546,0.0418012,71632.0,71622.0,0.07121094]
[1773562981183,0.0418012,71632.0,71622.0,0.06981094]
[1773562981377,0.0418012,71632.0,71622.0,0.07121094]
[1773562982678,0.0418012,71632.0,71622.0,0.07141094]
[1773562986590,0.0418012,71632.0,71622.0,0.07001094]
[1773562986792,0.0418012,71632.0,71623.0,0.07120961]
[1773562987321,0.0698012,71633.0,71623.0,0.07120961]
[1773562988237,0.0698012,71632.0,71623.0,0.07120961]
[1773562989320,0.07002121,71632.0,71623.0,0.07120961]
[1773562993667,0.07002121,71632.0,71623.0,0.06980961]
[1773562993872,0.07002121,71632.0,71623.0,0.07120961]
[1773562994077,0.07002121,71632.0,71623.0,0.06980961]
[1773562994259,0.07002121,71632.0,71623.0,0.07120961]
[1773562994785,0.07002121,71632.0,71622.0,0.0002]
[1773562994986,0.07002121,71632.0,71611.0,0.0002]
[1773562994987,0.11055891,71631.0,71611.0,0.0002]
[1773562995217,0.11055891,71631.0,71605.0,0.20872233]
[1773562995218,0.08948641,71632.0,71609.0,0.0014]
[1773562995219,0.11055891,71620.0,71609.0,0.0014]
[1773562996379,0.11055891,71620.0,71607.0,0.07015488]
[1773562996576,0.11055891,71620.0,71608.0,0.0014]
[1773562997413,0.06981387,71619.0,71614.0,0.0002]
[1773562997773,0.06981387,71619.0,71607.0,0.07015488]
[1773562997774,0.06981387,71619.0,71607.0,0.07155488]
[1773562998628,0.06981387,71619.0,71607.0,0.0014]
[1773563000120,0.06981099,71622.0,71608.0,0.0698246]
[1773563000315,0.06980997,71623.0,71608.0,0.17532721]
[1773563000972,0.06980997,71624.0,71609.0,0.10550261]
[1773563002325,0.06993827,71625.0,71609.0,0.10550261]
[1773563002326,0.0001295,71625.0,71611.0,0.11150558]
[1773563002735,0.0014,71629.0,71611.0,0.11150558]
[1773563003056,0.05933168,71631.0,71611.0,0.11150558]
[1773563003255,0.0014,71630.0,71612.0,0.07280833]
[1773563003425,0.0014,71630.0,71613.0,0.11290558]
[1773563004330,0.00022001,71623.0,71613.0,0.11290558]
[1773563004672,0.00022001,71623.0,71614.0,0.18132433]
[1773563004870,0.00022001,71623.0,71615.0,0.11150558]
[1773563006630,0.05955169,71631.0,71617.0,0.11150558]
[1773563008540,0.05955169,71631.0,71618.0,0.06981485]
[1773563008729,0.05955169,71631.0,71619.0,0.11150558]
[1773563009155,0.05955169,71631.0,71620.0,0.0014]
[1773563010436,0.03555169,71631.0,71620.0,0.0014]
[1773563010636,0.03555169,71631.0,71621.0,0.06981192]
[1773563014361,0.03555169,71631.0,71621.0,0.1813175]
[1773563014870,0.03555169,71631.0,71621.0,0.06981192]
[1773563015277,0.03565871,71631.0,71621.0,0.06981192]
[1773563018112,0.01765871,71631.0,71621.0,0.06981192]
[1773563019331,0.01765871,71631.0,71621.0,0.1813175]
[1773563020629,0.01765871,71631.0,71621.0,0.06981192]
[1773563025772,8.22e-06,71632.0,71621.0,0.06981192]
[1773563026070,0.06980218,71631.0,71621.0,0.06981192]
[1773563029092,5.802e-05,71632.0,71621.0,0.06981192]
[1773563029246,5.802e-05,71632.0,71622.0,0.11150558]
[1773563030457,5.802e-05,71632.0,71621.0,0.07001192]
[1773563030654,0.00022001,71631.0,71621.0,0.07001192]
[1773563031655,0.07002244,71631.0,71621.0,0.07001192]
[1773563033501,0.05102244,71631.0,71621.0,0.07001192]
[1773563037570,0.00022001,71631.0,71621.0,0.07001192]
[1773563040950,0.07002222,71631.0,71621.0,0.07001192]
[1773563041451,0.04902222,71631.0,71621.0,0.07001192]
[1773563043538,5.802e-05,71632.0,71621.0,0.07001192]
[1773563044053,5.802e-05,71632.0,71620.0,0.07121262]
[1773563044243,5.802e-05,71632.0,71620.0,0.0712129]
[1773563044244,0.10188228,71631.0,71620.0,0.0712129]
[1773563044439,0.10328228,71631.0,71620.0,0.0712129]
[1773563044751,0.10328228,71631.0,71621.0,0.0002]
[1773563046841,0.10328228,71631.0,71620.0,0.0712129]
[1773563046842,0.06980315,71630.0,71620.0,0.0698129]
[1773563048969,0.04380315,71630.0,71618.0,0.0014]
[1773563049168,0.0014,71631.0,71618.0,0.0014]
[1773563049744,0.07007976,71632.0,71619.0,0.10239849]
[1773563051096,0.07007976,71632.0,71621.0,0.10239849]
[1773563053669,0.07007976,71632.0,71622.0,0.06981095]
[1773563053909,0.07007976,71632.0,71623.0,0.10239849]
[1773563054081,0.07007976,71632.0,71624.0,0.0014]
[1773563054689,0.00027803,71632.0,71624.0,0.0014]
[1773563054873,0.00027803,71632.0,71624.0,0.10379849]
[1773563055719,0.00027803,71632.0,71625.0,0.06980802]
[1773563055927,0.00027803,71632.0,71625.0,0.17220651]
[1773563056620,0.48049804,71634.0,71625.0,0.17220651]
[1773563056838,0.5502973,71634.0,71625.0,0.17220651]
[1773563057226,0.48049804,71634.0,71625.0,0.17220651]
[1773563058176,0.00022001,71632.0,71625.0,0.17220651]
[1773563058371,0.00022001,71632.0,71625.0,0.06980802]
[1773563064346,0.46571805,71634.0,71625.0,0.06980802]
[1773563065905,0.53551746,71634.0,71625.0,0.06980802]
[1773563069156,0.46571805,71634.0,71626.0,0.10664672]
[1773563069598,0.46571805,71634.0,71625.0,0.06980802]
[1773563072171,0.43271805,71634.0,71625.0,0.06980802]
[1773563079337,0.43271805,71634.0,71625.0,0.06985907]
[1773563079863,0.42071805,71634.0,71625.0,0.06985907]
[1773563080662,0.42071805,71634.0,71625.0,0.17650579]
[1773563087569,0.40871805,71634.0,71625.0,0.17650579]
[1773563090187,0.40871805,71634.0,71625.0,0.17635685]